bitfinex/quotes_ETHUSD_20220219
["timestamp","ask_amount","ask_price","bid_price","bid_amount"]
[1645297219816,7.21502828,2754.1,2754.0,3.01687842]
[1645297219817,7.212,2754.1,2754.0,3.01687842]
[1645297220114,7.21502827,2754.1,2754.0,3.01687842]
[1645297221113,7.212,2754.1,2754.0,3.01687842]
[1645297222716,7.212,2754.1,2754.0,4.55962797]
[1645297222915,7.212,2754.1,2754.0,3.01687842]
[1645297231763,7.212,2754.1,2754.0,4.55966001]
[1645297236212,5.56644866,2754.1,2754.0,4.55966001]
[1645297239268,5.56195321,2754.1,2754.0,4.55966001]
[1645297240865,5.56195321,2754.1,2754.0,5.05966001]
[1645297244317,5.56195321,2754.1,2754.0,3.51687842]
[1645297244716,5.59770309,2754.1,2754.0,3.51687842]
[1645297247969,5.59770309,2754.1,2754.0,5.05968591]
[1645297249172,5.59770309,2754.1,2754.0,3.51687842]
[1645297249369,5.59770309,2754.1,2754.0,5.622389]
[1645297252118,5.54770309,2754.1,2754.0,5.622389]
[1645297252916,5.54459749,2754.1,2754.0,5.622389]
[1645297254582,5.56242715,2754.1,2754.0,5.622389]
[1645297255086,5.56242715,2754.1,2754.0,5.05960833]
[1645297256283,3.91693331,2754.1,2754.0,5.05960833]
[1645297259520,3.93348504,2754.1,2754.0,4.55960833]
[1645297264368,3.89907458,2754.1,2754.0,4.55960833]
[1645297265854,3.89907458,2754.1,2754.0,5.04373894]
[1645297266053,3.89907458,2754.1,2754.0,4.55960833]
[1645297268355,3.89907458,2754.1,2754.0,5.05751419]
[1645297276368,2.25364693,2754.1,2754.0,5.05751419]
[1645297278672,2.08456336,2754.1,2754.0,5.05751419]
[1645297281325,2.08456336,2754.1,2754.0,4.55960833]
[1645297282524,2.08456336,2754.1,2754.0,5.06265559]
[1645297286274,2.032e-05,2754.2,2754.1,7.0]
[1645297286477,2.032e-05,2754.2,2754.1,24.94027826]
[1645297286671,2.032e-05,2754.2,2754.1,10.37027826]
[1645297286872,2.032e-05,2754.2,2754.1,12.41306777]
[1645297287071,3.36308756,2754.7,2754.1,13.90915668]
[1645297287322,3.36308757,2754.7,2754.3,0.69231868]
[1645297287522,3.36308757,2754.7,2754.4,0.62752185]
[1645297287720,3.3916023,2754.7,2754.5,1.54272991]
[1645297287920,3.39268582,2754.7,2754.5,1.54272991]
[1645297288220,3.55798762,2754.7,2754.5,1.54272991]
[1645297288523,3.39268583,2754.7,2754.5,1.54272991]
[1645297288720,3.42120056,2754.7,2754.5,1.60034258]
[1645297288921,3.42228408,2754.7,2754.6,1.54272991]
[1645297289325,3.53154647,2754.7,2754.6,5.04272991]
[1645297289724,3.5600612,2754.7,2754.6,5.73504859]
[1645297289926,3.56114472,2754.7,2754.6,5.04272991]
[1645297290525,3.56114472,2754.7,2754.6,1.54272991]
[1645297290727,3.58965945,2754.7,2754.6,1.54272991]
[1645297290928,3.59074297,2754.7,2754.6,1.54272991]
[1645297291381,3.42544118,2754.7,2754.6,1.54272991]
[1645297291780,3.42544118,2754.7,2754.2,1.54272991]
[1645297291981,3.42544118,2754.7,2754.3,1.54272991]
[1645297291982,3.39692646,2754.7,2754.3,1.54272991]
[1645297292185,3.39692646,2754.7,2754.4,3.06351942]
[1645297292385,3.39692646,2754.7,2754.4,2.11690833]
[1645297292585,3.94088705,2754.7,2754.4,2.11690833]
[1645297292983,3.5,2754.6,2753.7,3.5]
[1645297293185,0.56656427,2754.4,2753.5,0.69231868]
[1645297293585,0.90857,2754.2,2753.4,4.37371868]
[1645297294481,0.90857,2754.2,2753.4,0.87371868]
[1645297294687,1.50857,2754.2,2753.4,0.1814]
[1645297294948,1.50857,2754.2,2753.2,0.01275564]
[1645297294949,0.90862,2754.0,2753.2,0.01275564]
[1645297295644,0.56145343,2753.8,2753.1,1.64604436]
[1645297296143,0.90873,2753.6,2753.1,1.64604436]
[1645297299580,0.90873,2753.6,2753.3,0.01821475]
[1645297302628,0.3,2753.5,2753.3,0.01821475]
[1645297302831,13.49502777,2753.5,2753.3,0.01821475]
[1645297303033,15.31306777,2753.5,2753.3,0.01821475]
[1645297303228,1.0,2753.4,2753.3,0.01821475]
[1645297303430,8.2636,2753.4,2753.3,0.01821475]
[1645297308671,8.7856,2753.4,2753.3,0.01821475]
[1645297309821,13.77622777,2753.4,2753.3,0.01821475]
[1645297310021,8.7856,2753.4,2753.3,0.01821475]
[1645297310224,13.77622777,2753.4,2753.3,0.01821475]
[1645297311421,8.0,2753.3,2752.8,0.012866]
[1645297311624,4.99062777,2753.0,2752.8,0.012866]
[1645297311822,0.522,2752.9,2752.8,0.012866]
[1645297312023,1.522,2752.9,2752.8,0.012866]
[1645297312223,0.522,2752.9,2752.8,0.012866]
[1645297312422,0.522,2752.9,2752.3,0.00338194]
[1645297312423,1.12290304,2752.9,2752.3,0.00338194]
[1645297312624,1.12290304,2752.9,2752.6,0.00321642]
[1645297312625,0.90913,2752.8,2752.6,0.00321642]
[1645297312823,1.90913,2752.8,2752.6,0.00321642]
[1645297313577,1.90913,2752.8,2752.3,0.00338194]
[1645297313578,5.51262777,2752.7,2752.3,0.00338194]
[1645297313781,1.0,2752.6,2752.3,0.00338194]
[1645297313979,1.0,2752.6,2752.1,0.01286734]
[1645297313980,0.522,2752.5,2752.1,0.01286734]
[1645297314780,0.55509555,2752.4,2752.1,0.01286734]
[1645297314979,0.55509555,2752.4,2751.3,0.00338194]
[1645297315184,0.50714045,2751.6,2751.3,1.54702989]
[1645297315383,0.90932,2752.1,2751.3,1.54702989]
[1645297315384,5.84036,2752.2,2752.1,0.23010816]
[1645297315580,3.27280578,2752.2,2752.1,0.23010816]
[1645297316983,3.30240403,2752.2,2752.1,0.23010816]
[1645297317182,2.55838583,2752.2,2752.1,0.23010816]
[1645297318044,2.58798408,2752.2,2752.1,0.23010816]
[1645297318351,2.64402349,2752.2,2752.1,0.23010816]
[1645297318949,2.64510701,2752.2,2752.1,0.23010816]
[1645297319148,2.83892354,2752.2,2752.1,0.23010816]
[1645297319348,0.47543776,2752.2,2752.1,0.23010816]
[1645297320146,0.50503601,2752.2,2752.1,0.23010816]
[1645297320347,0.56107542,2752.2,2752.1,0.23010816]
[1645297321070,0.59067367,2752.2,2752.1,0.23010816]
[1645297321271,0.75597547,2752.2,2752.1,0.23010816]
[1645297322071,0.75705899,2752.2,2752.1,0.23010816]
[1645297322273,0.95087552,2752.2,2752.1,0.23010816]
[1645297323273,0.98047377,2752.2,2752.1,0.23010816]
[1645297323482,1.03651318,2752.2,2752.1,0.23010816]
[1645297324074,4.63651318,2752.2,2752.1,0.23010816]
[1645297324283,4.63651318,2752.2,2752.1,0.01525184]
[1645297324284,4.71748888,2752.2,2752.1,0.01525184]
[1645297324478,4.88279068,2752.2,2752.1,0.01525184]
[1645297324681,4.88279068,2752.2,2750.9,0.00338194]
[1645297324682,10.20479068,2752.2,2750.9,0.00338194]
[1645297324934,10.20479068,2752.2,2750.1,0.90941]
[1645297324935,0.94142,2752.1,2752.0,2.325e-05]
[1645297325127,13.71637476,2752.1,2752.0,2.325e-05]
[1645297325325,2.173,2751.9,2750.1,0.00338194]
[1645297325523,2.173,2751.9,2749.9,1.54415283]
[1645297325524,6.81014777,2751.5,2749.9,1.54415283]
[1645297325726,3.48875,2751.4,2750.0,3.5]
[1645297325921,3.48875,2751.4,2750.1,1.54750153]
[1645297326126,3.48875,2751.4,2750.2,3.5033487]
[1645297326127,1.0,2751.3,2750.2,3.5033487]
[1645297326322,2.34156,2751.2,2750.3,1.54750153]
[1645297326526,0.60867171,2750.6,2750.3,1.54750153]
[1645297326723,0.60867171,2750.6,2749.7,3.5]
[1645297326934,0.60867171,2750.6,2749.8,1.54777119]
[1645297327423,0.60867171,2750.6,2749.9,1.54442249]
[1645297327624,5.3135,2750.9,2749.5,1.29494599]
[1645297327625,0.90977,2750.4,2750.0,1.54777119]
[1645297327825,5.3135,2750.9,2750.4,2.47086308]
[1645297328027,0.522,2751.0,2750.4,2.47086308]
[1645297328028,0.55387,2751.3,2750.5,1.54777119]
[1645297328226,3.26677,2751.4,2750.6,0.0033487]
[1645297328425,3.2349,2751.4,2750.6,0.0033487]
[1645297328681,0.53173342,2751.3,2750.6,0.0033487]
[1645297329476,0.53173342,2751.3,2750.8,0.00342152]
[1645297329874,6.7349,2751.4,2750.8,0.00677022]
[1645297330076,0.90947,2751.3,2750.8,0.00677022]
[1645297330274,0.90947,2751.3,2750.8,0.00342152]
[1645297330476,0.90947,2751.3,2750.6,1.54421274]
[1645297330674,3.5,2751.2,2750.9,0.00342147]
[1645297330875,4.13675877,2751.2,2750.9,0.00342147]
[1645297331079,1.0,2751.1,2750.9,0.00342147]
[1645297331281,0.90968,2751.0,2750.9,0.00342147]
[1645297331476,4.40968,2751.0,2750.9,0.00342147]
[1645297331676,0.90968,2751.0,2750.5,0.0033487]
[1645297331877,4.40968,2751.0,2750.8,0.00342152]
[1645297332076,0.90968,2751.0,2750.8,0.00342152]
[1645297332320,4.40968,2751.0,2750.8,0.00342152]
[1645297332721,0.90968,2751.0,2750.8,0.00342152]
[1645297332922,0.90968,2751.0,2750.7,0.0033487]
[1645297333324,0.90968,2751.0,2750.8,0.00342154]
[1645297333928,4.50968,2751.0,2750.8,0.00342154]
[1645297334122,4.50968,2751.0,2750.6,1.54428162]
[1645297334321,0.46809949,2750.9,2750.8,0.00342154]
[1645297335323,3.33056985,2751.0,2750.7,0.0033487]
[1645297335527,3.33056985,2751.0,2750.7,0.00677027]
[1645297335724,3.33056985,2751.0,2750.7,0.00342157]
[1645297336277,3.33056985,2751.0,2750.7,1.54770949]
[1645297336482,3.33056985,2751.0,2750.7,1.54428792]
[1645297336483,4.24024985,2751.0,2750.7,1.54428792]
[1645297336677,4.24024985,2751.0,2750.8,1.54428792]
[1645297336882,4.40555165,2751.0,2750.9,1.54428792]
[1645297337280,4.43406638,2751.0,2750.7,0.00342157]
[1645297337679,4.4351499,2751.0,2750.6,1.54763662]
[1645297337879,4.49118931,2751.0,2750.7,1.54770949]
[1645297338281,4.51970404,2751.0,2750.7,1.54770949]
[1645297338786,4.52078756,2751.0,2750.7,1.54770949]
[1645297338987,4.57682697,2751.0,2750.7,1.54428792]
[1645297339183,4.57682697,2751.0,2750.7,0.00342157]
[1645297339384,0.04011382,2750.9,2750.7,0.00342157]
[1645297339584,0.04011382,2750.9,2750.7,1.54770949]
[1645297340025,0.04011382,2750.9,2750.7,1.54428792]
[1645297340329,0.04011382,2750.9,2750.8,1.54428792]
[1645297341226,0.04011382,2750.9,2750.6,1.54428792]
[1645297341427,0.04011382,2750.9,2750.7,1.54770949]
[1645297342027,0.04011382,2750.9,2750.7,1.54662597]
[1645297342226,0.04011382,2750.9,2750.7,0.00342157]
[1645297342427,0.04011382,2750.9,2750.6,0.0033487]
[1645297342628,0.04011382,2750.9,2750.7,0.0034216]
[1645297343685,0.04011382,2750.9,2750.6,0.0033487]
[1645297343878,0.04011382,2750.9,2750.7,0.0034216]
[1645297344777,0.04011382,2750.9,2750.6,0.0033487]
[1645297345378,0.04011382,2750.9,2750.7,0.0034216]
[1645297345975,0.04011382,2750.9,2750.6,0.0033487]
[1645297346381,0.04011382,2750.9,2750.7,0.0034216]
[1645297347177,0.58290136,2750.9,2750.6,0.0033487]
[1645297347423,0.58290136,2750.9,2750.7,0.0034216]
[1645297348424,0.58290136,2750.9,2750.6,0.0033487]
[1645297348724,0.58290136,2750.9,2750.7,0.0034216]
[1645297349628,0.58290136,2750.9,2750.6,0.0033487]
[1645297349827,0.58290136,2750.9,2750.7,0.00325445]
[1645297350230,1.49250136,2750.9,2750.7,0.00325445]
[1645297350828,1.49250136,2750.9,2750.6,0.0033487]
[1645297351073,1.49250136,2750.9,2750.7,0.00325445]
[1645297351480,1.49250136,2750.9,2750.4,2.4489515]
[1645297354283,5.31942,2750.8,2750.4,2.4489515]
[1645297354689,1.0,2750.7,2750.4,2.4489515]
[1645297354929,3.5,2750.6,2750.4,2.4489515]
[1645297355127,0.63224177,2749.7,2749.6,1.1314]
[1645297355333,0.63224177,2749.7,2749.1,1.10108255]
[1645297355334,0.63224177,2749.7,2749.2,1.1314]
[1645297355335,1.82028,2749.7,2749.2,1.1314]
[1645297355529,1.82028,2749.7,2749.6,0.04092649]
[1645297355929,0.49699675,2750.0,2749.6,0.04092649]
[1645297356128,0.49699675,2750.0,2749.3,0.0034223]
[1645297356327,0.90996,2749.9,2749.7,0.04035806]
[1645297356527,0.90996,2749.9,2749.4,0.04206333]
[1645297357127,0.90996,2749.9,2749.5,0.00342219]
[1645297357929,0.82760035,2750.0,2749.5,0.00342219]
[1645297358129,0.82760035,2750.0,2749.1,0.91938255]
[1645297358328,0.82760035,2750.0,2749.6,0.00342217]
[1645297358575,0.99290215,2750.0,2749.6,0.00342217]
[1645297358974,1.90279215,2750.0,2749.6,0.00342217]
[1645297359379,1.90279215,2750.0,2749.2,0.01369073]
[1645297359380,0.03733152,2749.7,2749.0,1.1259]
[1645297359580,0.03733152,2749.7,2749.3,0.01369052]
[1645297360578,0.09337093,2749.7,2749.0,1.1259]
[1645297360779,0.09337093,2749.7,2749.4,0.00342227]
[1645297361579,0.14941034,2749.7,2749.1,0.9098]
[1645297361978,0.14941034,2749.7,2749.0,9.00684986]
[1645297361979,0.14941034,2749.7,2749.4,0.00342225]
[1645297362428,0.14941034,2749.7,2749.4,1.54822832]
[1645297362634,0.14941034,2749.7,2749.5,1.54480607]
[1645297362831,0.31471214,2749.7,2749.1,1.54480607]
[1645297363029,0.31471214,2749.7,2749.1,1.54372255]
[1645297363230,0.31471214,2749.7,2749.4,0.00342225]
[1645297363730,0.48001394,2749.7,2749.4,0.00342225]
[1645297364734,0.0183756,2749.6,2749.4,0.00342225]
[1645297365331,0.0183756,2749.6,2749.1,1.54372255]
[1645297365533,0.91019,2749.5,2749.4,0.00342227]
[1645297365734,4.41019,2749.5,2749.4,0.00342227]
[1645297365933,4.46622941,2749.5,2749.4,0.00342227]
[1645297366584,0.96622941,2749.5,2749.1,1.54372255]
[1645297366787,0.96622941,2749.5,2749.3,0.0034223]
[1645297366985,1.02226882,2749.5,2749.3,0.0034223]
[1645297367886,1.18757062,2749.5,2749.3,0.00342232]
[1645297368587,0.27738062,2749.5,2749.3,0.00342232]
[1645297368993,0.27738062,2749.5,2749.0,0.68862745]
[1645297368994,0.33342003,2749.5,2749.1,0.68862745]
[1645297369191,0.33342003,2749.5,2749.3,0.00319433]
[1645297369389,0.33342003,2749.5,2749.3,0.69182178]
[1645297369590,0.33342003,2749.5,2749.3,0.00319433]
[1645297369591,3.93342003,2749.5,2749.3,0.00319433]
[1645297369833,3.9525922,2749.5,2749.3,0.00319433]
[1645297370033,4.00863161,2749.5,2749.2,0.68862745]
[1645297370338,4.00863161,2749.5,2749.3,0.00319433]
[1645297370933,4.00863161,2749.5,2749.3,0.69182178]
[1645297371135,4.17393341,2749.5,2749.3,0.69182178]
[1645297371333,7.17393341,2749.5,2749.3,0.68862745]
[1645297371534,7.17393341,2749.5,2749.3,0.69182178]
[1645297372139,7.22997282,2749.5,2749.4,0.68862745]
[1645297372535,7.22997282,2749.5,2749.3,6.81936]
[1645297372734,7.22997282,2749.5,2749.3,9.13991394]
[1645297373236,7.22997282,2749.5,2749.3,4.13991394]
[1645297373237,7.28601223,2749.5,2749.3,4.13991394]
[1645297373439,7.28601223,2749.5,2749.3,1.82268748]
[1645297373680,7.28601223,2749.5,2749.1,0.60410058]
[1645297373875,7.28601223,2749.5,2748.9,8.23938255]
[1645297374082,7.34205164,2749.5,2749.3,0.00332751]
[1645297374876,7.34205164,2749.5,2748.9,8.23938255]
[1645297375076,7.34205164,2749.5,2748.9,10.05884885]
[1645297375277,7.34205164,2749.5,2749.2,0.00143199]
[1645297375278,7.50735344,2749.5,2749.2,0.00143199]
[1645297375485,5.85943702,2749.5,2749.2,0.00143199]
[1645297376081,5.85943702,2749.5,2748.8,1.1716]
[1645297376278,5.91547643,2749.5,2748.8,1.1716]
[1645297376877,6.46729254,2749.5,2748.8,1.1716]
[1645297377079,7.37734254,2749.5,2748.8,1.1716]
[1645297377328,7.54264434,2749.5,2748.8,1.1716]
[1645297377930,11.04264434,2749.5,2748.8,1.1716]
[1645297378138,11.04264434,2749.5,2748.4,1.1506]
[1645297378139,0.9102,2749.3,2748.4,1.1506]
[1645297378331,3.53185,2749.2,2748.3,3.3219]
[1645297378533,0.03185,2749.3,2748.3,3.3219]
[1645297378929,0.03185,2749.3,2748.7,0.00318716]
[1645297379130,0.9103,2749.0,2748.7,0.00318716]
[1645297379329,0.05603941,2749.0,2748.7,0.00318716]
[1645297379731,0.05603941,2749.0,2748.0,2.13408255]
[1645297379929,0.05603941,2749.0,2748.0,2.03408255]
[1645297380129,0.05603941,2749.0,2748.7,0.00329314]
[1645297380332,0.22134121,2749.0,2748.7,0.00329314]
[1645297380736,0.22134121,2749.0,2748.0,2.57245454]
[1645297381080,0.22134121,2749.0,2748.0,7.00055023]
[1645297381280,0.22134121,2749.0,2748.7,0.00329314]
[1645297381480,0.27738062,2749.0,2748.7,0.00329314]
[1645297382077,0.27738062,2749.0,2748.1,1.55036513]
[1645297382477,0.33342003,2749.0,2748.3,0.68963376]
[1645297383285,0.33342003,2749.0,2748.4,1.54510898]
[1645297383479,0.33342003,2749.0,2748.5,1.54510898]
[1645297383480,0.38945944,2749.0,2748.5,1.54510898]
[1645297383680,0.00318152,2748.8,2748.6,1.54510898]
[1645297383881,0.00318152,2748.8,2748.7,1.54510898]
[1645297384080,0.00318152,2748.8,2748.4,0.91005]
[1645297384282,0.00318152,2748.8,2748.5,1.54510898]
[1645297384581,0.04038933,2748.9,2748.5,1.54510898]
[1645297384831,0.00297284,2748.7,2748.5,1.54510898]
[1645297385530,0.16827464,2748.7,2748.5,1.54510898]
[1645297385730,0.1653018,2748.7,2748.5,1.54510898]
[1645297385936,0.16827464,2748.7,2748.5,1.54510898]
[1645297386633,0.22431405,2748.7,2748.5,1.54510898]
[1645297387032,0.22134121,2748.7,2748.5,1.54510898]
[1645297387232,0.22433192,2748.7,2748.5,1.54510898]
[1645297387636,0.22433192,2748.7,2748.6,0.53669029]
[1645297387834,0.22433192,2748.7,2748.6,2.08179927]
[1645297388232,0.22134121,2748.7,2748.6,2.08179927]
[1645297388438,0.22134121,2748.7,2748.6,2.50379927]
[1645297389482,0.26166868,2748.7,2748.6,2.50379927]
[1645297389681,0.26166868,2748.7,2748.6,7.50379927]
[1645297389883,0.26166868,2748.7,2748.6,8.42318182]
[1645297390283,0.00300417,2748.8,2748.7,0.52333735]
[1645297390483,0.55476124,2749.0,2748.7,0.52333735]
[1645297390688,0.55476124,2749.0,2748.7,2.06844633]
[1645297390884,0.55476124,2749.0,2748.7,0.52333735]
[1645297390885,0.00300605,2748.8,2748.7,0.52333735]
[1645297391090,0.00300605,2748.8,2748.7,2.06822834]
[1645297391684,0.55476124,2749.0,2748.7,2.06822834]
[1645297391885,0.55476124,2749.0,2748.8,1.54489099]
[1645297392088,0.00300601,2748.9,2748.8,1.54489099]
[1645297392529,1.53177166,2748.7,2748.6,1.86857029]
[1645297393529,1.53177166,2748.7,2748.6,1.84005556]
[1645297393735,1.53177166,2748.7,2748.6,1.40336527]
[1645297393930,1.53177166,2748.7,2748.6,1.44138255]
[1645297394131,1.53177166,2748.7,2748.6,0.522]
[1645297394430,1.53177166,2748.7,2748.6,1.44138255]
[1645297394631,1.56703738,2748.7,2748.6,1.44138255]
[1645297394830,1.56703738,2748.7,2748.6,1.95210552]
[1645297395530,0.49192545,2749.0,2748.6,1.95210552]
[1645297395731,0.00300743,2748.8,2748.6,1.95210552]
[1645297396385,0.00300743,2748.8,2748.7,0.91938255]
[1645297396677,0.49192545,2749.0,2748.7,0.91938255]
[1645297396877,0.00300712,2748.8,2748.7,0.91938255]
[1645297397478,0.00300712,2748.8,2748.6,1.03272297]
[1645297397678,0.49192545,2749.0,2748.7,0.92317914]
[1645297398079,0.00300709,2748.9,2748.8,0.92317914]
[1645297398480,0.00300709,2748.9,2748.8,0.87317914]
[1645297398885,0.49192545,2749.0,2748.8,0.87317914]
[1645297399381,0.4949325,2749.0,2748.8,0.87317914]
[1645297399827,0.4949325,2749.0,2748.7,0.7446382]
[1645297400029,0.4949325,2749.0,2748.6,8.32203679]
[1645297400030,0.4949325,2749.0,2748.6,1.90140392]
[1645297400232,0.49192545,2749.0,2748.6,1.90140392]
[1645297400532,0.49493253,2749.0,2748.6,1.90140392]
[1645297400730,0.49493253,2749.0,2748.6,0.522]
[1645297401329,0.49192545,2749.0,2748.7,0.53096381]
[1645297401831,0.00300711,2748.9,2748.7,0.53096381]
[1645297402431,0.00300711,2748.9,2748.6,0.522]
[1645297402634,0.49192545,2749.0,2748.6,0.522]
[1645297402835,0.00300711,2748.9,2748.6,0.522]
[1645297403433,0.00300711,2748.9,2748.6,1.90140392]
[1645297403682,0.49192545,2749.0,2748.7,0.47917301]
[1645297404082,0.00300712,2748.9,2748.7,0.47917301]
[1645297404280,0.00300712,2748.9,2748.7,1.38911301]
[1645297404478,0.00300712,2748.9,2748.7,0.90994]
[1645297404680,0.03164093,2748.9,2748.7,0.92513328]
[1645297404878,0.02863381,2748.9,2748.7,0.92513328]
[1645297405280,0.03164091,2748.9,2748.7,0.92404976]
[1645297405479,0.03164091,2748.9,2748.7,0.01519328]
[1645297406180,0.02863381,2748.9,2748.7,0.01519328]
[1645297406381,0.03164091,2748.9,2748.7,0.01519328]
[1645297407330,0.02863381,2748.9,2748.7,0.01519328]
[1645297407531,0.02863381,2748.9,2748.8,0.92381006]
[1645297407733,0.03164091,2748.9,2748.8,0.92381006]
[1645297408132,0.03164091,2748.9,2748.7,0.01519328]
[1645297408330,0.03164091,2748.9,2748.8,0.92380983]
[1645297408532,0.02863381,2748.9,2748.8,0.92380983]
[1645297408730,0.02863381,2748.9,2748.7,0.93900311]
[1645297408731,0.03164091,2748.9,2748.7,0.93900311]
[1645297409336,0.03164091,2748.9,2748.8,0.92380983]
[1645297409734,0.02863381,2748.9,2748.8,0.92380983]
[1645297410334,0.02863381,2748.9,2748.7,0.01519328]
[1645297411180,0.03042793,2748.9,2748.7,0.01519328]
[1645297411786,0.03042793,2748.9,2748.8,0.92382992]
[1645297412183,0.02863381,2748.9,2748.8,0.92382992]
[1645297412781,0.02863381,2748.9,2748.8,2.46880045]
[1645297413384,0.02863381,2748.9,2748.8,1.54497053]
[1645297413783,0.02863381,2748.9,2748.8,2.46880045]
[1645297414388,0.02863381,2748.9,2748.8,1.54497053]
[1645297414584,0.02863381,2748.9,2748.7,0.92714787]
[1645297415034,0.02863381,2748.9,2748.8,0.92382992]
[1645297415236,0.02863381,2748.9,2748.6,7.29264187]
[1645297415637,2.49071566,2749.0,2748.7,3.0]
[1645297415937,2.48742436,2749.0,2748.9,0.92402681]
[1645297416336,2.48742436,2749.0,2748.7,5.29258187]
[1645297416535,2.48742436,2749.0,2748.8,0.59267899]
[1645297416943,0.1653018,2749.4,2748.9,17.97140392]
[1645297417142,0.1653018,2749.4,2749.3,5.92457946]
[1645297417337,0.1653018,2749.4,2749.3,0.92454613]
[1645297417537,0.1653018,2749.4,2749.1,17.44940392]
[1645297417946,0.1653018,2749.4,2749.2,12.44940392]
[1645297418137,0.1653018,2749.4,2749.3,0.47937885]
[1645297418586,0.16848269,2749.4,2749.3,0.47937885]
[1645297418787,0.16848269,2749.4,2749.3,0.92457291]
[1645297419088,0.16848269,2749.4,2749.2,0.522]
[1645297419286,0.16848269,2749.4,2749.1,0.92457291]
[1645297419287,0.1653018,2749.4,2749.1,0.92457291]
[1645297419687,0.1653018,2749.4,2749.2,0.92457291]
[1645297420287,3.77928329,2749.5,2749.2,0.92457291]
[1645297420484,3.77610245,2749.5,2749.4,0.6933482]
[1645297421295,7.27610245,2749.5,2749.1,0.5280464]
[1645297421687,7.27610245,2749.5,2748.9,0.00331795]
[1645297422097,0.00318822,2749.4,2748.9,0.00331795]
[1645297422937,3.77610245,2749.5,2748.9,0.00331795]
[1645297423138,0.00319063,2749.3,2748.9,0.00331795]
[1645297423538,0.00319063,2749.3,2748.8,2.13567291]
[1645297423941,0.00319063,2749.3,2748.9,0.92457291]
[1645297424140,3.77610245,2749.5,2748.8,2.13567291]
[1645297424339,0.0031902,2749.2,2748.8,2.13567291]
[1645297425341,3.77610245,2749.5,2748.8,2.13567291]
[1645297425541,0.00319022,2749.1,2748.8,2.13567291]
[1645297426284,0.00319022,2749.1,2748.8,1.21001648]
[1645297426485,3.6,2749.1,2748.8,2.13458939]
[1645297426690,3.6,2749.1,2748.9,0.92457291]
[1645297426888,3.60319025,2749.1,2748.8,0.92457291]
[1645297427785,3.6,2749.1,2748.8,0.92457291]
[1645297427992,3.60319029,2749.1,2748.8,0.92457291]
[1645297428185,3.60319029,2749.1,2748.7,1.82307285]
[1645297428186,3.60319029,2749.1,2748.9,0.92457291]
[1645297428985,3.6,2749.1,2748.9,0.92457291]
[1645297429186,3.60319026,2749.1,2748.9,0.92457291]
[1645297429588,3.60319026,2749.1,2749.0,0.10299942]
[1645297430235,3.6,2749.1,2749.0,0.10299942]
[1645297434486,3.6,2749.1,2749.0,1.64800309]
[1645297435484,3.6,2749.1,2749.0,1.61948836]
[1645297435688,1.95200017,2749.1,2749.0,1.54500367]
[1645297435886,1.95200017,2749.1,2748.9,0.92457291]
[1645297436287,1.95200017,2749.1,2749.0,1.54500367]
[1645297436487,1.95200017,2749.1,2748.9,2.41957658]
[1645297437090,1.95200017,2749.1,2749.0,1.54500367]
[1645297437530,1.95378188,2749.1,2749.0,1.54500367]
[1645297437729,1.95378188,2749.1,2749.0,0.56092856]
[1645297437935,1.95378188,2749.1,2749.0,2.10593223]
[1645297438530,1.95200017,2749.1,2749.0,1.54500367]
[1645297438732,1.95200017,2749.1,2748.9,0.87457291]
[1645297439531,1.95200017,2749.1,2748.9,1.54500367]
[1645297439733,1.95200017,2749.1,2749.0,1.54500367]
[1645297440132,1.95529455,2749.1,2748.9,1.54500367]
[1645297440933,1.95529455,2749.1,2749.0,0.28048429]
[1645297440934,1.95200017,2749.1,2749.0,0.28048429]
[1645297441185,1.95529455,2749.1,2749.0,1.82548796]
[1645297442182,1.95200017,2749.1,2749.0,1.82548796]
[1645297442381,1.95200017,2749.1,2749.0,1.66018616]
[1645297444682,1.95200017,2749.1,2749.0,2.14248008]
[1645297445335,1.95200017,2749.1,2749.0,3.06797285]
[1645297446338,1.95200017,2749.1,2749.0,2.02729759]
[1645297446740,1.95120017,2749.1,2749.0,2.95270814]
[1645297446940,1.95120017,2749.1,2749.0,2.02729759]
[1645297447339,1.95120017,2749.1,2749.0,2.02621407]
[1645297447742,1.95120017,2749.1,2749.0,0.4812104]
[1645297447942,1.95120017,2749.1,2749.0,2.02621407]
[1645297448581,1.95120017,2749.1,2749.0,3.40561799]
[1645297448783,0.0031907,2749.2,2749.1,3.0]
[1645297448988,0.0031907,2749.2,2749.1,17.52497945]
[1645297449186,0.0031907,2749.2,2749.1,16.13700367]
[1645297449386,3.77610245,2749.5,2749.1,18.52383202]
[1645297449586,3.77610245,2749.5,2749.4,0.92452853]
[1645297449981,3.77610245,2749.5,2749.4,2.4695322]
[1645297450392,4.6837,2750.4,2749.6,7.5]
[1645297450587,1.1837,2750.4,2749.7,0.00387346]
[1645297450785,5.4e-06,2750.0,2749.9,22.07]
[1645297450992,0.23580719,2751.0,2749.9,11.522]
[1645297451185,3.6,2750.0,2749.9,11.522]
[1645297451385,3.6,2750.0,2749.9,13.0663675]
[1645297451984,3.6,2750.0,2749.9,10.5164746]
[1645297452184,3.6,2750.0,2749.9,6.3350646]
[1645297452636,3.6,2750.0,2749.9,9.8350646]
[1645297452838,3.6,2750.0,2749.9,4.5164746]
[1645297453039,3.6,2750.0,2749.9,6.1978946]
[1645297453239,3.6,2750.0,2749.9,6.88947467]
[1645297453442,3.6,2750.0,2749.9,6.1978946]
[1645297454640,3.6,2750.0,2749.9,2.6978946]
[1645297455341,3.6,2750.0,2749.9,6.1978946]
[1645297455741,1.95260993,2750.0,2749.9,6.1978946]
[1645297456192,1.95260993,2750.0,2749.9,6.88863901]
[1645297456589,1.95260993,2750.0,2749.9,6.86012428]
[1645297456786,1.95260993,2750.0,2749.9,2.66937987]
[1645297458189,1.95260993,2750.0,2749.9,6.16937987]
[1645297458390,1.95260993,2750.0,2749.9,6.86012428]
[1645297458589,1.95260993,2750.0,2749.9,6.16937987]
[1645297458988,1.95260993,2750.0,2749.9,12.09144797]
[1645297459190,1.95260993,2750.0,2749.9,25.47867443]
[1645297459391,1.95260993,2750.0,2749.9,24.55660633]
[1645297459594,1.95260993,2750.0,2749.9,13.48660633]
[1645297459841,1.95260993,2750.0,2749.9,11.16937987]
[1645297460039,1.95260993,2750.0,2749.9,19.55660633]
[1645297460238,1.95260993,2750.0,2749.9,17.23937987]
[1645297460438,1.95260993,2750.0,2749.9,6.16937987]
[1645297460839,1.95260993,2750.0,2749.9,6.85926204]
[1645297461239,1.95260993,2750.0,2749.9,6.16937987]
[1645297461445,1.95260993,2750.0,2749.9,6.85927461]
[1645297462641,1.95260993,2750.0,2749.9,17.92927461]
[1645297463341,1.95260993,2750.0,2749.9,17.87927461]
[1645297463587,1.95260993,2750.0,2749.9,14.37927461]
[1645297464992,1.95260993,2750.0,2749.9,19.37927461]
[1645297465492,1.95260993,2750.0,2749.9,14.37856887]
[1645297465693,1.95260993,2750.0,2749.9,14.37834092]